fUSD/lending_fUSD_20241031
["ID","MTS","AMOUNT","RATE_DAILY","PERIOD"]
[341102326,1730374232279,-250.0,0.00056825,120]
[341102327,1730374232288,-1000.0,0.00056848,120]
[341102328,1730374232297,-23900.0,0.00056888,2]
[341102329,1730374232306,-165.47,0.00056902,120]
[341102330,1730374232316,-250.0,0.0005691,120]
[341102331,1730374232325,-192.49,0.00057239,120]
[341102332,1730374232334,-393.11368545,0.00057257,15]
[341102333,1730374232345,-784.6,0.00057257,15]
[341102334,1730374232372,-550.2330322,0.00057257,15]
[341102341,1730374237993,-1051.74850456,0.00055444,120]
[341102348,1730374238957,-102.25149544,0.00055444,120]
[341102349,1730374238967,-255.07473117,0.00057257,15]
[341102350,1730374238976,-304.9,0.00057412,2]
[341102351,1730374238985,-262.7751,0.00057535,2]
[341102352,1730374238995,-1131.31257586,0.00057535,2]
[341102355,1730374240151,-354.8742564,0.00055444,120]
[341102374,1730374243438,-265.1257436,0.00055444,120]
[341102376,1730374243448,-2689.85222414,0.00057535,2]
[341102378,1730374243458,-3369.0,0.00057634,120]
[341102380,1730374243468,-1853.0,0.00057634,120]
[341102381,1730374243478,-812.0,0.00057634,2]
[341102382,1730374243487,-807.0,0.00057634,120]
[341102383,1730374243497,-937.754,0.00057634,120]
[341102384,1730374243506,-1249.0,0.00057634,120]
[341102385,1730374243516,-1000.0,0.000577,120]
[341102386,1730374243525,-411.48063059,0.00057896,120]
[341102387,1730374243535,-6671.7666,0.000579,2]
[341102388,1730374243545,-3000.0,0.00058,40]
[341102389,1730374243555,-3000.0,0.00058,40]
[341102390,1730374243564,-3000.0,0.00058,40]
[341102392,1730374243574,-3000.0,0.00058,40]
[341102394,1730374243583,-2000.0,0.00058,60]
[341102396,1730374243592,-2263.0,0.00058,40]
[341102398,1730374243602,-172.99,0.00058066,120]
[341102400,1730374243611,-411.48063059,0.00058265,120]
[341102402,1730374243623,-1000.0,0.00058336,2]
[341102403,1730374243633,-165.23454191,0.00058339,28]
[341102404,1730374243642,-55555.0,0.0005834,120]
[341102405,1730374243651,-327.85854204,0.00058341,2]
[341102406,1730374243661,-167.03444991,0.00058347,72]
[341102407,1730374243671,-2086.63767138,0.0005838,120]
[341102409,1730374243680,-411.48063059,0.00058399,120]
[341102411,1730374243689,-64993.35507929,0.000584,120]
[341102413,1730374243699,-150.0,0.00058409,14]
[341102415,1730374243708,-150.0,0.0005841,14]
[341102417,1730374243717,-150.0,0.00058412,14]
[341102419,1730374243727,-150.0,0.00058417,14]
[341102421,1730374243736,-150.0,0.00058417,14]
[341102423,1730374243746,-150.0,0.00058418,14]
[341102425,1730374243755,-150.0,0.00058418,30]
[341102427,1730374243764,-150.0,0.00058425,14]
[341102429,1730374243774,-1500.0,0.00058426,30]
[341102431,1730374243783,-150.0,0.00058427,14]
[341102433,1730374243792,-150.87,0.0005843,2]
[341102435,1730374243802,-150.0,0.00058432,14]
[341102437,1730374243811,-150.0,0.00058432,14]
[341102439,1730374243821,-150.0,0.00058434,14]
[341102441,1730374243830,-150.0,0.00058436,14]
[341102443,1730374243840,-48262.67120257,0.00058436,28]
[341102445,1730374243850,-150.0,0.00058437,14]
[341102447,1730374243861,-150.0,0.00058439,14]
[341102449,1730374243873,-999.0,0.00058439,120]
[341102451,1730374243882,-999.0,0.00058439,120]
[341102453,1730374243891,-999.0,0.00058439,120]
[341102455,1730374243900,-999.0,0.00058439,120]
[341102457,1730374243910,-999.0,0.00058439,120]
[341102459,1730374243919,-999.0,0.00058439,120]
[341102461,1730374243928,-999.0,0.00058439,120]
[341102463,1730374243938,-999.0,0.00058439,120]
[341102465,1730374243948,-999.0,0.00058439,120]
[341102466,1730374243958,-999.0,0.00058439,120]
[341102468,1730374243968,-999.0,0.00058439,120]
[341102470,1730374243978,-999.0,0.00058439,120]
[341102472,1730374243988,-999.0,0.00058439,120]
[341102485,1730374244101,-999.0,0.00058439,120]
[341102487,1730374244112,-682.32855617,0.00058439,120]
[341102489,1730374244127,-1073.13,0.00058439,120]
[341102491,1730374244137,-2000000.0,0.0005844,30]
[341102493,1730374244146,-150.0,0.00058441,14]
[341102495,1730374244156,-150.0,0.00058443,14]
[341102497,1730374244166,-451.0,0.00058444,120]
[341102499,1730374244175,-13579.0,0.00058444,120]
[341102501,1730374244185,-292.201,0.00058444,120]
[341102503,1730374244194,-534.0,0.00058444,120]
[341102505,1730374244205,-150.0,0.00058446,14]
[341102507,1730374244214,-150.0,0.00058446,14]
[341102509,1730374244224,-150.0,0.00058448,14]
[341102511,1730374244233,-150.0,0.00058449,14]
[341102512,1730374244242,-150.0,0.00058449,14]
[341102514,1730374244252,-150.0,0.00058449,14]
[341102516,1730374244261,-150.0,0.00058451,14]
[341102518,1730374244271,-1500.0,0.00058452,30]
[341102520,1730374244280,-150.0,0.00058453,14]
[341102522,1730374244290,-150.0,0.00058453,14]
[341102524,1730374244301,-150.0,0.00058454,14]
[341102526,1730374244310,-636.0986622,0.00058455,30]
[341102528,1730374244320,-150.0,0.00058458,14]
[341102530,1730374244330,-150.0,0.0005847,14]
[341102532,1730374244340,-150.0,0.00058472,14]
[341102534,1730374244349,-182.39143287,0.00058473,3]
[341102536,1730374244359,-190.04921035,0.00058473,15]
[341102538,1730374244368,-500.0,0.00058473,15]
[341102540,1730374244381,-500.0,0.00058473,5]
[341102542,1730374244391,-160.57320123,0.00058473,7]
[341102544,1730374244400,-493.85331221,0.00058473,15]
[341102546,1730374244410,-500.0,0.00058473,15]
[341102548,1730374244419,-500.0,0.00058473,15]
[341102550,1730374244429,-291.23647677,0.00058478,14]
[341102552,1730374244438,-150.0,0.00058482,14]
[341102554,1730374244447,-150.0,0.0005849,14]
[341102555,1730374244456,-150.0,0.00058499,14]
[341102557,1730374244466,-150.0,0.000585,14]
[341102559,1730374244475,-150.0,0.00058502,14]
[341102561,1730374244485,-150.0,0.00058502,30]
[341102563,1730374244494,-150.0,0.00058504,14]
[341102565,1730374244504,-150.0,0.00058507,14]
[341102567,1730374244513,-150.0,0.00058509,14]
[341102569,1730374244523,-1500.0,0.0005851,30]
[341102571,1730374244533,-150.0,0.00058513,14]
[341102573,1730374244543,-150.0,0.00058516,14]
[341102575,1730374244552,-150.0,0.00058519,14]
[341102577,1730374244561,-150.0,0.00058522,14]
[341102579,1730374244571,-150.0,0.00058525,14]
[341102581,1730374244583,-150.0,0.00058525,14]
[341102583,1730374244592,-150.0,0.00058525,14]
[341102585,1730374244601,-150.0,0.00058527,14]
[341102587,1730374244611,-150.0,0.00058528,14]
[341102589,1730374244620,-150.0,0.0005853,14]
[341102591,1730374244630,-150.0,0.00058537,14]
[341102593,1730374244639,-150.0,0.00058537,30]
[341102595,1730374244648,-150.0,0.00058538,14]
[341102597,1730374244657,-150.0,0.00058539,14]
[341102599,1730374244666,-150.0,0.00058541,14]
[341102601,1730374244675,-150.0,0.00058544,14]
[341102603,1730374244685,-150.0,0.00058549,14]
[341102605,1730374244695,-150.0,0.00058552,14]
[341102606,1730374244704,-150.0,0.00058557,14]
[341102608,1730374244714,-150.0,0.00058558,14]
[341102610,1730374244723,-150.0,0.00058561,14]
[341102612,1730374244732,-150.0,0.00058562,30]
[341102614,1730374244741,-150.0,0.00058563,14]
[341102616,1730374244750,-150.0,0.00058566,14]
[341102618,1730374244759,-150.0,0.00058568,14]
[341102620,1730374244769,-150.0,0.00058571,14]
[341102622,1730374244779,-150.0,0.00058575,14]
[341102624,1730374244790,-150.0,0.00058577,14]
[341102626,1730374244800,-150.0,0.00058577,14]
[341102628,1730374244810,-150.0,0.00058581,14]
[341102630,1730374244820,-150.0,0.00058582,14]
[341102632,1730374244830,-1500.0,0.00058582,30]
[341102634,1730374244840,-150.0,0.00058583,14]
[341102636,1730374244850,-150.0,0.00058585,14]
[341102638,1730374244860,-150.0,0.00058586,14]
[341102640,1730374244870,-150.0,0.00058589,14]
[341102642,1730374244888,-863.9013378,0.0005859,30]
[341102644,1730374244899,-246.15799468,0.0005859,2]
[341102646,1730374244908,-478.0002,0.0005859,2]
[341102648,1730374244918,-167.02,0.00058593,2]
[341102650,1730374244927,-150.0,0.00058597,14]
[341102652,1730374244937,-150.0,0.00058598,14]
[341102654,1730374244946,-1000.0,0.000586,120]
[341102656,1730374244956,-150.0,0.00058602,14]
[341102658,1730374244967,-150.0,0.00058603,14]
[341102660,1730374244977,-150.0,0.00058607,14]
[341102662,1730374244988,-150.0,0.00058608,14]
[341102664,1730374244999,-150.0,0.00058608,14]
[341102666,1730374245009,-150.0,0.00058609,14]
[341102668,1730374245018,-150.0,0.0005861,14]
[341102670,1730374245029,-150.0,0.00058611,14]
[341102672,1730374245039,-150.0,0.00058618,14]
[341102674,1730374245047,-150.0,0.00058619,14]
[341102676,1730374245057,-150.0,0.00058623,14]
[341102678,1730374245068,-150.0,0.00058623,14]
[341102680,1730374245077,-150.0,0.00058625,14]
[341102682,1730374245087,-150.0,0.00058628,14]
[341102684,1730374245097,-150.0,0.00058629,14]
[341102686,1730374245107,-1500.0,0.00058633,30]
[341102688,1730374245117,-150.0,0.00058634,14]
[341102690,1730374245130,-150.0,0.00058635,14]
[341102692,1730374245140,-1500.0,0.00058636,30]
[341102693,1730374245150,-150.0,0.00058636,14]
[341102696,1730374245160,-150.0,0.00058637,14]
[341102697,1730374245171,-150.0,0.00058637,14]
[341102699,1730374245181,-150.0,0.00058637,14]
[341102701,1730374245191,-4000.0,0.0005864,120]
[341102703,1730374245201,-150.0,0.00058645,14]
[341102705,1730374245210,-150.0,0.00058645,14]
[341102707,1730374245220,-150.0,0.00058649,14]
[341102709,1730374245231,-150.0,0.00058652,14]
[341102711,1730374245240,-150.0,0.00058652,14]
[341102713,1730374245251,-150.0,0.00058659,14]
[341102715,1730374245261,-150.0,0.00058659,14]
[341102717,1730374245271,-150.0,0.00058662,14]
[341102719,1730374245281,-150.0,0.00058663,14]
[341102721,1730374245291,-150.0,0.00058664,14]
[341102723,1730374245301,-150.0,0.00058664,14]
[341102725,1730374245312,-150.0,0.0005867,14]
[341102727,1730374245323,-1500.0,0.00058671,30]
[341102729,1730374245332,-150.0,0.00058672,14]
[341102731,1730374245343,-150.0,0.00058674,14]
[341102732,1730374245353,-150.0,0.00058675,14]
[341102734,1730374245363,-150.0,0.00058677,14]
[341102737,1730374245373,-150.0,0.00058678,14]
[341102738,1730374245383,-150.0,0.00058683,14]
[341102741,1730374245394,-2776.328475,0.00058689,120]
[341102743,1730374245405,-500.0,0.00058689,14]
[341102745,1730374245415,-1843538.01842915,0.0005869,120]
[341102746,1730374245426,-2000.0,0.0005869,15]
[341102748,1730374245435,-200.0,0.0005869,15]
[341102749,1730374245445,-151.0,0.0005869,120]
[341102750,1730374245454,-887.256844,0.0005869,120]
[341102751,1730374245464,-887.256844,0.0005869,120]
[341102752,1730374245475,-784.110607,0.0005869,120]
[341102753,1730374245485,-784.110607,0.0005869,120]
[341102754,1730374245494,-151.0,0.0005869,120]
[341102755,1730374245503,-151.0,0.0005869,120]
[341102756,1730374245514,-202.68286365,0.0005869,30]
[341102757,1730374245524,-812.5,0.000587,60]
[341102758,1730374245534,-3700.0,0.000587,20]
[341102760,1730374245544,-3144.13212934,0.000588,120]
[341102762,1730374245554,-157.0,0.00058987,25]
[341102764,1730374245565,-500.0,0.00059,31]
[341102766,1730374245575,-7079.55,0.00059,120]
[341102768,1730374245585,-532.41,0.00059081,2]
[341102770,1730374245595,-1073.13,0.00059124,120]
[341102772,1730374245606,-411.48063059,0.00059174,120]
[341102774,1730374245619,-411.48063059,0.00059194,120]
[341102776,1730374245629,-1000.0,0.000592,120]
[341102778,1730374245639,-200.0,0.00059277,15]
[341102780,1730374245649,-150.87,0.0005943,120]
[341102781,1730374245658,-200.4331055,0.0005944,66]
[341102783,1730374245668,-53349.49188509,0.0005944,64]
[341102785,1730374245679,-1802773.14552591,0.0005944,30]
[341102865,1730374382858,261.0,0.00019725,2]
[341102868,1730374488192,150.0,0.00017605,2]
[341102869,1730374529883,150.0,0.00017605,2]
[341102873,1730374563183,300.0,0.00019725,2]
[341102874,1730374571732,150.0,0.00017605,2]
[341102875,1730374613105,150.0,0.00017605,2]
[341102877,1730374654563,150.0,0.00017605,2]
[341102880,1730374732199,550.0,0.00015,2]
[341102881,1730374733332,600.0,0.00017,2]
[341102882,1730374734412,650.0,0.00019,2]
[341102886,1730374846242,157.8,0.00015342,2]
[341102887,1730374860554,1090.82,0.0002402,30]
[341102888,1730374921288,1090.82,0.0002402,30]
[341102895,1730375214162,-700.0,0.00021,2]
[341102896,1730375214182,-416.89719877,0.000227,2]
[341102897,1730375214201,-169.8052495,0.000228,2]
[341102898,1730375214222,-238.6344753,0.00023,2]
[341102899,1730375227106,-511.3655247,0.00023,2]
[341102900,1730375227127,-200.0,0.00023,2]
[341102901,1730375227148,-391.0,0.0002402,30]
[341102902,1730375227171,-800.0,0.00025,2]
[341102903,1730375227195,-201.0,0.000253,10]
[341102904,1730375227216,-850.0,0.00027,2]
[341102905,1730375227238,-900.0,0.00029,2]
[341102906,1730375227261,-234.0,0.000297,2]
[341102907,1730375227282,-284.0,0.000297,2]
[341102908,1730375227309,-950.0,0.00031,2]
[341102909,1730375227329,-150.0,0.00032,120]
[341102910,1730375227349,-1000.0,0.00033,2]
[341102911,1730375227369,-188.78,0.00033715,2]
[341102912,1730375227390,-150.0,0.00034548,10]
[341102913,1730375227410,-179.0146359,0.00035,2]
[341102914,1730375239098,-257.95255997,0.00035,2]
[341102915,1730375243150,-200.0,0.00034825,30]
[341102916,1730375243171,-200.0,0.00034825,30]
[341102917,1730375243191,-200.0,0.00034825,30]
[341102918,1730375243210,-200.0,0.00034825,30]
[341102919,1730375243229,-613.03280413,0.00035,2]
[341102920,1730375243249,-150.0,0.00035,120]
[341102921,1730375243272,-152.0,0.00035,2]
[341102922,1730375243294,-157.8,0.00035616,2]
[341102923,1730375243318,-453.366,0.00036602,45]
[341102924,1730375243339,-1100.0,0.00037,2]
[341102925,1730375243360,-150.0,0.00038,120]
[341102926,1730375243379,-3146.46,0.00039738,2]
[341102927,1730375243400,-150.0,0.0004,120]
[341102928,1730375243421,-200.0,0.0004,2]
[341102929,1730375243445,-1934.83942146,0.00040377,2]
[341102930,1730375246119,-217.95359692,0.00034825,30]
[341102931,1730375246141,-1211.62057854,0.00040377,2]
[341102932,1730375246161,-19120.22,0.00040908,2]
[341102933,1730375246180,-3146.46,0.00041015,2]
[341102934,1730375246200,-3146.46,0.00041654,2]
[341102935,1730375246222,-150.0,0.00041835,7]
[341102936,1730375246242,-300.0,0.00041892,4]
[341102937,1730375246261,-515.56,0.00041892,2]
[341102938,1730375246280,-182.94,0.00042156,2]
[341102939,1730375246300,-3146.46,0.00042292,2]
[341102940,1730375246319,-3146.46,0.00042931,2]
[341102941,1730375246339,-250.0,0.00043307,2]
[341102942,1730375246359,-271.39,0.00043325,2]
[341102943,1730375246379,-809.25,0.00043343,120]
[341102944,1730375246398,-167.91869702,0.00043515,2]
[341102951,1730375350105,-150.0,0.00043416,2]
[341102952,1730375350125,-5292.89354,0.00043515,2]
[341102953,1730375358111,-2648.271346,0.00043515,2]
[341102954,1730375358135,-1987.95285852,0.00043515,2]
[341102955,1730375358156,-23900.0,0.00043516,2]
[341102956,1730375358176,-3146.46,0.00043569,2]
[341102957,1730375358197,-1000.0,0.00044111,2]
[341102958,1730375358219,-162.03,0.0004413,120]
[341102959,1730375358240,-3146.46,0.00044208,2]
[341102960,1730375358261,-182.94,0.00044264,2]
[341102961,1730375358281,-180.0,0.00044562,120]
[341102962,1730375358301,-250.0,0.00044824,120]
[341102963,1730375358320,-170.0,0.00045,120]
[341102965,1730375358340,-200.0,0.00045,2]
[341102966,1730375358361,-290.107,0.00046179,2]
[341102967,1730375358382,-213.72,0.00046283,2]
[341102968,1730375358402,-182.94,0.00046372,2]
[341102969,1730375358422,-182.94,0.0004848,2]
[341102970,1730375358442,-223.32599841,0.000486,2]
[341102971,1730375358464,-1000.0,0.00049625,120]
[341102972,1730375358484,-12179.95215155,0.0005,30]
[341102973,1730375360772,156.57,0.00015342,2]
[341102974,1730375371087,-1188.21472,0.0005,30]
[341102986,1730375432168,-6704.26046272,0.0005,30]
[341102987,1730375432362,-2744.0,0.0005,30]
[341102988,1730375432423,-1378.66431652,0.0005,30]
[341102993,1730375438394,-12483.42498412,0.0005,30]
[341102994,1730375438468,-7188.71215537,0.0005,30]
[341102995,1730375438485,-1086.67559,0.0005,30]
[341103134,1730375440252,-970.7474701,0.0005,30]
[341103156,1730375440459,-4075.34814962,0.0005,30]
[341103158,1730375440469,-178.0,0.0005,120]
[341103160,1730375440478,-489.78,0.00050051,2]
[341103162,1730375440487,-1171.0,0.000501,12]
[341103164,1730375440497,-182.94,0.00050587,2]
[341103166,1730375440506,-167.0,0.00051535,2]
[341103167,1730375440515,-165.49,0.00051824,2]
[341103169,1730375440526,-250.0,0.00051872,120]
[341103171,1730375440535,-1166.97,0.00052309,2]
[341103173,1730375440544,-489.78,0.00052315,2]
[341103175,1730375440555,-200.0,0.00053661,10]
[341103178,1730375440567,-388.42104174,0.000538,15]
[341103180,1730375440578,-249.2,0.000539,2]
[341103182,1730375440588,-489.78,0.00054579,2]
[341103184,1730375440598,-500.0,0.00054795,120]
[341103186,1730375440607,-500.0,0.00054795,120]
[341103188,1730375440616,-500.0,0.00054795,120]
[341103190,1730375440625,-500.0,0.00054795,120]
[341103191,1730375440634,-453.366,0.00054952,104]
[341103193,1730375440644,-13715.69186196,0.00055,30]
[341103196,1730375440659,-36284.30813804,0.00055,30]
[341103198,1730375440668,-2556.09657812,0.00055,120]
[341103266,1730375441796,154.6146,0.000444,44]
[341103275,1730375443635,-1.11419863,0.00055,120]
[341103276,1730375443695,-169.48188034,0.00055,120]
[341103277,1730375444703,-1762.6747,0.00055,120]
[341103279,1730375446159,-3177.11586701,0.00055,120]
[341103280,1730375446693,-2232.4407759,0.00055,120]
[341103281,1730375446703,-1011.3840095,0.00055,120]
[341103282,1730375446861,-776.5733512,0.00055,120]
[341103283,1730375641407,300.0,0.00019725,2]
[341103284,1730375642269,420.0,0.00021484,2]
[341103285,1730375643007,587.0,0.00023401,2]
[341103287,1730375749516,236.09,0.00019178,2]
[341103288,1730375762567,300.0,0.00019725,2]
[341103289,1730375763319,420.0,0.00021484,2]
[341103290,1730375764091,587.0,0.00023401,2]
[341103291,1730375837292,262.52628683,0.0002429,7]
[341103292,1730375856224,158.81,0.00015342,2]
[341103294,1730375882004,300.0,0.00019725,2]
[341103296,1730376061493,300.0,0.00019725,2]
[341103298,1730376121353,300.0,0.00019725,2]
[341103299,1730376252421,163.94,0.00019178,2]
[341103300,1730376302106,300.0,0.00019725,2]
[341103301,1730376317366,150.0,0.000205,3]
[341103302,1730376333369,150.0,0.000205,3]
[341103304,1730376361874,300.0,0.00019725,2]
[341103305,1730376438144,-270.0,0.000297,2]
[341103306,1730376438163,-163.94,0.00035616,120]
[341103307,1730376438185,-498.24141233,0.00043,2]
[341103308,1730376450143,-692.02858767,0.00043,2]
[341103309,1730376450164,-660.140952,0.0004975,2]
[341103310,1730376450187,-6856.48994822,0.0005,120]
[341103311,1730376481397,300.0,0.00019725,2]
[341103312,1730376546797,550.0,0.00015,2]
[341103313,1730376547894,600.0,0.00017,2]
[341103314,1730376549087,-1529.56694804,0.00044677,20]
[341103315,1730376554100,-176.0,0.00048,90]
[341103316,1730376554123,-13143.51005178,0.0005,120]
[341103317,1730376554144,-150.99,0.0005,30]
[341103318,1730376555599,273.191,0.00048755,2]
[341103319,1730376562108,-3369.0,0.00053896,120]
[341103320,1730376562131,-812.0,0.00053896,2]
[341103321,1730376562152,-731.187,0.00053896,120]
[341103322,1730376562171,-13579.0,0.00053896,120]
[341103323,1730376562191,-1087.0,0.00053896,120]
[341103324,1730376562210,-179.26,0.000539,2]
[341103326,1730376578355,451.67982661,0.00051258,3]
[341103327,1730376580131,156.29,0.00015342,2]
[341103328,1730376592797,3583.24403909,0.00044577,2]
[341103329,1730376592821,2274.62736091,0.00044577,2]
[341103330,1730376601425,300.0,0.00019725,2]
[341103331,1730376602183,420.0,0.00021484,2]
[341103332,1730376602932,587.0,0.00023401,2]
[341103333,1730376603692,823.0,0.00025488,2]
[341103334,1730376604462,1152.0,0.00027761,2]
[341103335,1730376605231,1370.58593909,0.00030237,2]
[341103336,1730376605263,242.41406091,0.00030237,2]
[341103337,1730376605967,1204.0,0.00032934,2]
[341103339,1730376632339,-500.3413,0.00054695,120]
[341103340,1730376632348,-224.79989565,0.00054695,2]
[341103341,1730376632357,-500.0,0.00054795,120]
[341103342,1730376632367,-500.0,0.00054795,120]
[341103343,1730376632376,-185.49,0.00054883,120]
[341103344,1730376632387,-428.07,0.00054987,2]
[341103345,1730376632396,-18233.4286541,0.00055,120]
[341103346,1730376632406,-185.8357317,0.00055,90]
[341103347,1730376632416,-150.0,0.00055,120]
[341103348,1730376632425,-200.0,0.00055,15]
[341103349,1730376632438,-3000.0,0.00055,120]
[341103350,1730376632447,-200.0,0.00055,15]
[341103351,1730376632456,-272.019,0.00055339,105]
[341103352,1730376632466,-158.00045096,0.00055339,30]
[341103353,1730376632475,-200.0,0.0005555,15]
[341103354,1730376632484,-445.17041142,0.000556,2]
[341103355,1730376632493,-157.8,0.0005589,2]
[341103356,1730376632502,-156.57,0.0005589,2]
[341103357,1730376632511,-200.0,0.00056105,15]
[341103358,1730376632520,-150.0,0.00056123,120]
[341103359,1730376632529,-150.0,0.00056123,120]
[341103360,1730376632538,-78.50825336,0.00056123,2]
[341103361,1730376632552,-71.49174664,0.00056123,2]
[341103362,1730376632561,-1249.0,0.00056123,120]
[341103363,1730376632571,-451.0,0.00056123,120]
[341103364,1730376632580,-345.074,0.00056123,120]
[341103365,1730376632589,-557.0,0.00056123,120]
[341103366,1730376632598,-560.60960943,0.00056123,120]
[341103409,1730376640351,-427.04139071,0.00056123,120]
[341103410,1730376640362,-526.90860929,0.00056123,120]
[341103422,1730376643782,-338.44039057,0.00056123,120]
[341103424,1730376643792,-165.49,0.00056143,2]
[341103426,1730376643802,-1215.0,0.00056557,2]
[341103428,1730376643811,-23900.0,0.00056727,2]
[341103430,1730376643820,-250.0,0.00056776,120]
[341103432,1730376643830,-2363.1064463,0.00056896,120]
[341103517,1730376696518,18313.70745728,0.00045678,61]
[341103519,1730377203143,1000.0,0.00018,10]
[341103520,1730377207933,159.81,0.00015342,2]
[341103524,1730377507927,186673.74069487,0.00016,2]
[341103526,1730377532279,997.24275647,0.000153,2]
[341103527,1730377555373,631.11968448,0.000159,2]
[341103528,1730377605149,-228.71973725,0.0002211,2]
[341103529,1730377605170,-487.596796,0.00024825,2]
[341103530,1730377605189,-137.58517815,0.0002495,2]
[341103531,1730377630095,-199.85954673,0.0002485,2]
[341103532,1730377630117,-6499.04824475,0.0002495,2]
[341103533,1730377631097,-174.91106626,0.0002495,2]
[341103534,1730377632506,952.05497628,0.000153,2]
[341103535,1730377637139,-572.25968963,0.00022,2]
[341103536,1730377643130,-16537.17552465,0.00022,2]
[341103537,1730377654442,2047.94502372,0.0001513,2]
[341103538,1730377654469,7989.27455945,0.0001513,2]
[341103539,1730377685087,21231.2361347,0.000145,3]
[341103540,1730377708931,1220.2155859,0.00012,30]
[341103541,1730377709266,4185.682,0.00044678,20]
[341103542,1730377712980,379.68386559,0.000156,2]
[341103543,1730377721685,153.71,0.00015342,2]
[341103544,1730377727431,-35000.0,0.00022,2]
[341103546,1730377730991,481.77919825,0.000154,2]
[341103547,1730377731215,2872.15142546,0.0001575,2]
[341103548,1730377745084,-6760.263538,0.00022,2]
[341103549,1730377749086,-1159.75432379,0.00022,2]
[341103550,1730377749107,-718.73968401,0.0002485,2]
[341103551,1730377749129,-21090.0531322,0.0002495,2]
[341103552,1730377754104,-21964.05578807,0.0002495,2]
[341103553,1730377754124,-1572.9224669,0.00026,2]
[341103554,1730377754144,-14511.0,0.0002605,2]
[341103555,1730377754164,-11728.76510661,0.000264,2]
[341103556,1730377754185,-155.96281842,0.00026832,2]
[341103557,1730377759112,-11.05718158,0.00026832,2]
[341103558,1730377759132,-499.99,0.00026832,2]
[341103559,1730377759152,-4597.22,0.00027,120]
[341103560,1730377759171,-3389.19,0.00027,2]
[341103561,1730377759191,-159.81,0.00027507,2]
[341103562,1730377759211,-217.0,0.000298,2]
[341103563,1730377759230,-297.93934068,0.0003,2]
[341103564,1730377759249,-285.15033288,0.0003,2]
[341103565,1730377759269,-153.71,0.00030548,2]
[341103566,1730377759288,-167.02,0.0003126,2]
[341103567,1730377759307,-200.0,0.00036124,2]
[341103568,1730377759331,-200.0,0.00038277,2]
[341103569,1730377759351,-554.77,0.00039385,2]
[341103570,1730377759371,-159.81,0.00039671,2]
[341103571,1730377759391,-1098.76113499,0.0004,21]
[341103572,1730377759410,-1459.59459122,0.0004,120]
[341103573,1730377759432,-554.77,0.00040018,2]
[341103574,1730377759452,-554.77,0.00040651,2]
[341103575,1730377759471,-3367.71,0.00041216,2]
[341103576,1730377759490,-554.77,0.00041284,2]
[341103577,1730377759510,-554.77,0.00041917,2]
[341103578,1730377759530,-1242.82,0.00041968,2]
[341103579,1730377759550,-4800.50242716,0.00042,2]
[341103580,1730377761161,-271.39,0.00039821,2]
[341103581,1730377761185,-16322.77559247,0.00042,2]